bitfinex-derivatives/quotes_BNBF0:USTF0_20250331
["timestamp","ask_amount","ask_price","bid_price","bid_amount"]
[1743421787994,1.07,594.03,593.33,0.33708054]
[1743421791698,1.07,594.03,593.33,2.89233684]
[1743421792505,2.484,594.18,593.33,2.89233684]
[1743421793008,2.484,594.18,593.33,0.33708054]
[1743421794808,2.484,594.18,593.79,2.5552563]
[1743421795002,1.21757695,595.28,593.79,2.5552563]
[1743421795200,1.65414488,595.49,593.79,2.5552563]
[1743421795201,5.2464396,595.46,593.81,0.33680806]
[1743421795408,1.94745807,595.46,593.81,0.33680806]
[1743421795611,2.67396142,595.45,593.81,0.33680806]
[1743421795807,1.48296142,595.44,593.81,0.33680806]
[1743421796011,1.48296142,595.43,593.81,0.33680806]
[1743421796207,1.191,595.45,593.81,0.33680806]
[1743421796513,2.69827527,595.44,593.81,0.33680806]
[1743421796714,1.48224504,595.43,593.81,0.33680806]
[1743421796910,1.21603023,595.44,593.81,0.33680806]
[1743421797106,1.48222262,595.43,593.81,0.33680806]
[1743421797311,1.48222262,595.42,593.81,0.33680806]
[1743421797613,2.40767628,595.41,593.81,0.33680806]
[1743421797806,2.4077058,595.4,593.81,0.33680806]
[1743421798010,2.40770833,595.39,593.81,0.33680806]
[1743421798208,1.48222262,595.38,593.81,0.33680806]
[1743421798408,1.48222262,595.37,593.81,0.33680806]
[1743421798608,1.48222262,595.36,593.81,0.33680806]
[1743421798808,1.48222262,595.35,593.81,0.33680806]
[1743421799014,1.48222262,595.34,593.81,0.33680806]
[1743421799313,1.48222262,595.33,593.81,0.33680806]
[1743421799508,1.48177415,595.32,593.81,0.33680806]
[1743421799714,1.48177415,595.31,593.81,0.33680806]
[1743421799913,1.48177415,595.3,593.81,0.33680806]
[1743421800110,1.48177415,595.29,593.81,0.33680806]
[1743421800308,1.48177415,595.28,593.81,0.33680806]
[1743421800512,1.48177415,595.27,593.81,0.33680806]
[1743421800713,1.48181004,595.26,593.81,0.33680806]
[1743421800908,1.21603023,595.27,593.81,0.33680806]
[1743421801109,1.48180958,595.26,593.81,0.33680806]
[1743421801314,1.21603023,595.27,593.81,0.33680806]
[1743421801511,2.69784705,595.26,593.81,0.33680806]
[1743421801715,1.21603023,595.26,593.81,0.33680806]
[1743421801918,2.69773697,595.25,593.81,0.33680806]
[1743421802118,1.21603023,595.25,593.81,0.33680806]
[1743421802319,1.48170757,595.24,593.81,0.33680806]
[1743421802518,1.48170757,595.23,593.81,0.33680806]
[1743421802714,1.48170757,595.22,593.81,0.33680806]
[1743421802924,1.48198388,595.21,593.81,0.33680806]
[1743421803124,1.48198388,595.2,593.81,0.33680806]
[1743421803439,1.21603023,595.22,593.81,0.33680806]
[1743421803615,1.48183782,595.21,593.81,0.33680806]
[1743421803823,1.21603023,595.21,593.81,0.33680806]
[1743421804812,1.278,595.37,593.81,0.33680806]
[1743421805124,2.40616327,595.36,593.81,0.33680806]
[1743421805420,1.48132904,595.35,593.81,0.33680806]
[1743421805619,1.48132904,595.34,593.81,0.33680806]
[1743421805819,1.48132904,595.33,593.81,0.33680806]
[1743421806013,1.48132904,595.32,593.81,0.33680806]
[1743421806317,2.69632748,595.31,593.81,0.33680806]
[1743421806518,1.21499844,595.31,593.81,0.33680806]
[1743421807114,1.48030845,595.3,593.81,0.33680806]
[1743421807316,1.21499844,595.3,593.81,0.33680806]
[1743421807717,1.48055641,595.29,593.81,0.33680806]
[1743421807915,1.21499844,595.29,593.81,0.33680806]
[1743421808114,1.21499844,595.28,593.81,0.33680806]
[1743421808918,2.69548043,595.27,593.81,0.33680806]
[1743421809117,1.48048199,595.26,593.81,0.33680806]
[1743421809325,1.48048199,595.25,593.81,0.33680806]
[1743421809525,1.48048199,595.24,593.81,0.33680806]
[1743421809825,1.48048199,595.23,593.81,0.33680806]
[1743421810018,1.48048199,595.22,593.81,0.33680806]
[1743421810220,1.21499844,595.21,593.81,0.33680806]
[1743421810419,1.48075031,595.2,593.81,0.33680806]
[1743421810618,1.48075292,595.19,593.81,0.33680806]
[1743421810826,1.48075292,595.18,593.81,0.33680806]
[1743421811028,1.48075188,595.17,593.81,0.33680806]
[1743421811223,1.21499844,595.17,593.81,0.33680806]
[1743421811430,1.48095777,595.16,593.81,0.33680806]
[1743421811630,1.21499844,595.17,593.81,0.33680806]
[1743421811828,1.48095881,595.16,593.81,0.33680806]
[1743421812027,1.21499844,595.16,593.81,0.33680806]
[1743421812933,1.21499844,595.15,593.81,0.33680806]
[1743421813725,1.21499844,595.14,593.81,0.33680806]
[1743421814231,1.21499844,595.13,593.81,0.33680806]
[1743421815028,1.21499844,595.12,593.81,0.33680806]
[1743421815533,1.21499844,595.11,593.81,0.33680806]
[1743421816334,0.67188702,595.31,593.81,0.33680806]
[1743421816528,1.48258819,595.3,593.81,0.33680806]
[1743421816735,1.48258819,595.29,593.81,0.33680806]
[1743421816933,0.67188702,595.31,593.81,0.33680806]
[1743421817133,1.21618155,595.28,593.81,0.33680806]
[1743421817749,1.21618155,595.27,593.81,0.33680806]
[1743421818237,1.21618155,595.26,593.81,0.33680806]
[1743421819237,1.278,595.37,593.81,0.33680806]
[1743421819238,1.21618155,595.25,593.81,0.33680806]
[1743421819642,1.278,595.37,593.81,0.33680806]
[1743421819838,2.40959392,595.36,593.81,0.33680806]
[1743421820036,1.48324226,595.35,593.81,0.33680806]
[1743421820235,3.16379923,595.36,593.81,0.33680806]
[1743421820236,1.48324226,595.34,593.81,0.33680806]
[1743421820433,1.48324226,595.33,593.81,0.33680806]
[1743421820634,1.48324226,595.32,593.81,0.33680806]
[1743421820850,1.48324226,595.31,593.81,0.33680806]
[1743421821038,1.48324226,595.3,593.81,0.33680806]
[1743421821234,3.16379923,595.33,593.81,0.33680806]
[1743421821439,1.48353833,595.32,593.81,0.33680806]
[1743421821639,1.48353833,595.31,593.81,0.33680806]
[1743421821840,1.48353833,595.3,593.81,0.33680806]
[1743421822037,1.21684586,595.32,593.81,0.33680806]
[1743421822242,1.48346116,595.31,593.81,0.33680806]
[1743421822441,1.21684586,595.32,593.81,0.33680806]
[1743421822442,2.22284586,595.32,593.81,0.33680806]
[1743421822744,1.21684586,595.3,593.81,0.33680806]
[1743421822943,1.21684586,595.29,593.81,0.33680806]
[1743421823543,1.48374853,595.28,593.81,2.89206436]
[1743421823741,2.70059439,595.27,593.81,2.89206436]
[1743421823941,1.21684586,595.27,593.81,2.89206436]
[1743421824142,1.48385842,595.26,593.81,2.89206436]
[1743421824340,1.48385842,595.25,593.81,2.89206436]
[1743421824542,1.48385842,595.24,593.81,2.89206436]
[1743421824742,1.21684586,595.25,593.81,2.89206436]
[1743421825139,1.21684586,595.24,593.81,0.33680806]
[1743421825338,1.48416505,595.23,593.81,0.33680806]
[1743421825642,1.21684586,595.22,593.81,0.33680806]
[1743421826241,1.438,595.21,593.81,0.33680806]
[1743421827645,1.438,595.21,593.92,2.5552563]
[1743421827840,1.438,595.21,593.94,0.33673435]
[1743421829650,1.438,595.21,593.98,2.5552563]
[1743421830248,1.438,595.21,594.0,0.33670033]
[1743421831150,1.438,595.21,594.02,2.5552563]
[1743421831351,1.438,595.21,594.04,0.33667766]
[1743421832150,1.438,595.21,594.19,2.5552563]
[1743421832449,1.438,595.21,594.21,0.33658134]
[1743421833351,1.438,595.21,594.21,2.89183764]
[1743421835348,1.438,595.21,594.39,2.5552563]
[1743421835550,1.438,595.21,594.41,0.33646809]
[1743421838045,0.985,595.2,594.41,0.33646809]
[1743421846361,1.22997738,595.19,594.41,2.89172439]
[1743421846760,1.22997738,595.18,594.41,2.89172439]
[1743421847360,1.22997738,595.17,594.41,2.89172439]
[1743421847562,1.22997738,595.17,594.41,0.33646809]
[1743421848280,0.985,595.2,594.41,0.33646809]
[1743421849364,0.985,595.2,594.45,2.5552563]
[1743421849662,0.985,595.2,594.46,0.33643979]
[1743421851862,0.985,595.2,594.52,2.5552563]
[1743421852062,0.985,595.2,594.53,0.33640018]
[1743421859469,2.237,595.2,594.53,0.33640018]
[1743421861365,7.5219775,595.19,594.53,0.33640018]
[1743421861569,3.396,595.2,594.53,0.33640018]
[1743421861570,7.5219775,595.18,594.53,0.33640018]
[1743421861767,7.5219775,595.17,594.53,0.33640018]
[1743421861974,7.52060223,595.16,594.53,0.33640018]
[1743421862270,6.34435893,595.15,594.53,0.33640018]
[1743421862471,4.84333935,595.14,594.53,0.33640018]
[1743421862671,4.84333935,595.13,594.53,0.33640018]
[1743421862889,4.84333935,595.12,594.53,0.33640018]
[1743421863072,2.44013805,595.11,594.53,0.33640018]
[1743421863371,1.50200081,595.1,594.53,0.33640018]
[1743421863569,1.23289405,595.12,594.53,0.33640018]
[1743421863869,1.23289405,595.1,594.53,0.33640018]
[1743421864572,1.23289405,595.09,594.53,0.33640018]
[1743421865167,2.411,595.2,594.53,0.33640018]
[1743421868773,3.595,595.2,594.53,0.33640018]
[1743421884688,3.595,595.2,594.56,2.5552563]
[1743421885589,3.595,595.2,594.57,0.33637755]
[1743421902298,1.252,595.2,594.57,0.33637755]
[1743421903404,0.93661374,595.52,594.57,0.33637755]
[1743421905904,2.599,595.51,594.57,0.33637755]
[1743421906108,4.094,595.51,594.57,0.33637755]
[1743421909708,4.094,595.51,594.57,2.89163385]
[1743421911115,4.094,595.51,594.57,0.33637755]
[1743421923320,4.094,595.51,594.62,2.5552563]
[1743421923917,2.846,595.51,594.62,2.5552563]
[1743421924721,2.846,595.51,594.64,0.33633795]
[1743421924922,2.846,595.51,595.14,2.5552563]
[1743421925519,2.846,595.51,595.15,0.33604973]
[1743421927929,1.461,595.5,595.15,0.33604973]
[1743421937735,1.461,595.5,595.17,2.5552563]
[1743421937937,1.461,595.5,595.18,0.33603279]
[1743421938934,1.461,595.5,595.26,2.5552563]
[1743421939144,1.461,595.5,595.27,0.33598199]
[1743421939939,2.846,595.51,595.27,0.33598199]
[1743421943844,1.494,595.5,595.27,0.33598199]
[1743421959854,0.93661374,595.52,595.27,0.33598199]
[1743421960056,1.354,595.49,595.27,0.33598199]
[1743421961548,2.838,595.49,595.27,0.33598199]
[1743421963448,3.921,595.49,595.27,0.33598199]
[1743421978569,2.838,595.49,595.27,0.33598199]
[1743421982474,0.6457171,595.49,595.27,0.33598199]
[1743421982672,0.93661374,595.52,595.4,2.5552563]
[1743421982874,0.93661374,595.52,595.41,0.33590299]
[1743421988382,1.414,595.58,595.41,0.33590299]
[1743422004913,1.26100253,596.04,595.41,0.33590299]
[1743422005603,1.26100253,596.03,595.41,0.33590299]
[1743422006106,2.251,596.06,595.41,0.33590299]
[1743422008404,1.19,596.05,595.41,0.33590299]
[1743422015110,1.089,596.04,595.41,0.33590299]
[1743422025315,1.221,596.03,595.41,0.33590299]
[1743422039525,1.577,596.02,595.41,0.33590299]
[1743422048044,1.577,596.02,595.47,2.5552563]
[1743422048240,1.577,596.02,595.48,0.3358635]
[1743422049837,1.577,596.02,595.5,2.5552563]
[1743422050042,1.577,596.02,595.51,0.33584658]
[1743422053346,1.577,596.02,595.54,2.5552563]
[1743422053547,1.577,596.02,595.55,0.33582402]
[1743422057950,1.48,596.01,595.55,0.33582402]
[1743422064648,1.416,596.0,595.55,0.33582402]
[1743422068052,1.26074683,595.99,595.55,0.33582402]
[1743422068549,1.26074683,595.98,595.55,0.33582402]
[1743422068755,1.49962753,595.97,595.55,0.33582402]
[1743422068954,1.49962753,595.96,595.55,0.33582402]
[1743422069254,1.49966205,595.95,595.55,0.33582402]
[1743422069454,1.49966205,595.94,595.55,0.33582402]
[1743422069655,1.26074683,595.94,595.55,0.33582402]
[1743422070453,1.26074683,595.93,595.55,0.33582402]
[1743422071052,1.416,596.0,595.55,0.33582402]
[1743422071053,1.26074683,595.92,595.55,0.33582402]
[1743422071757,1.26074683,595.91,595.55,0.33582402]
[1743422072249,1.26074683,595.9,595.55,0.33582402]
[1743422072852,1.26074683,595.89,595.55,0.33582402]
[1743422073458,1.416,596.0,595.55,0.33582402]
[1743422073655,2.43243562,595.99,595.55,0.33582402]
[1743422073853,2.43243562,595.98,595.55,0.33582402]
[1743422074057,1.49738497,595.97,595.55,0.33582402]
[1743422074255,1.49738497,595.96,595.55,0.33582402]
[1743422074456,1.49685132,595.95,594.72,2.5552563]
[1743422074656,8.77155711,595.94,594.74,0.3362814]
[1743422074854,4.82683289,595.93,594.74,0.3362814]
[1743422075057,2.43166978,595.92,594.74,0.3362814]
[1743422075357,5.7052228,595.91,594.74,0.3362814]
[1743422075557,2.43166978,595.9,594.74,0.3362814]
[1743422075751,1.49685132,595.89,594.74,0.3362814]
[1743422075951,1.49685132,595.88,594.74,0.3362814]
[1743422076152,1.49685132,595.87,594.74,0.3362814]
[1743422076355,1.25905885,595.86,594.74,0.3362814]
[1743422077158,1.25905885,595.85,594.74,0.3362814]
[1743422077554,0.996,595.84,594.74,0.3362814]
[1743422077763,2.25505885,595.84,594.74,0.3362814]
[1743422078154,1.25905885,595.83,594.74,0.3362814]
[1743422079156,1.25905885,595.82,594.74,0.3362814]
[1743422079561,1.49322904,595.81,594.74,0.3362814]
[1743422079755,1.49322904,595.8,594.74,0.3362814]
[1743422079955,1.49322904,595.79,594.74,0.3362814]
[1743422080160,3.26811013,595.8,594.74,0.3362814]
[1743422080456,4.76138561,595.79,594.74,0.3362814]
[1743422080656,3.26811013,595.79,594.74,0.3362814]
[1743422081267,3.26811013,595.78,594.74,0.3362814]
[1743422081859,3.26811013,595.77,594.74,0.3362814]
[1743422082185,0.996,595.84,594.74,0.3362814]
[1743422082763,1.25394405,595.83,594.74,0.3362814]
[1743422083364,1.25394405,595.82,594.74,0.3362814]
[1743422083870,1.25394405,595.81,594.74,0.3362814]
[1743422084662,0.996,595.84,594.74,0.3362814]
[1743422086270,1.496,595.83,594.74,0.3362814]
[1743422088370,3.25665111,595.82,594.74,0.3362814]
[1743422089170,3.25665111,595.81,594.74,0.3362814]
[1743422089571,3.25665111,595.8,594.74,0.3362814]
[1743422090073,1.25255812,595.79,594.74,0.3362814]
[1743422090867,1.25255812,595.78,594.74,0.3362814]
[1743422091469,1.25255812,595.77,594.74,0.3362814]
[1743422091966,1.25255812,595.76,594.74,0.3362814]
[1743422092563,1.25255812,595.75,594.74,0.3362814]
[1743422092966,1.496,595.83,594.74,0.3362814]
[1743422093671,3.25473665,595.82,594.74,0.3362814]
[1743422094265,3.25473665,595.81,594.74,0.3362814]
[1743422094866,3.25473665,595.8,594.74,0.3362814]
[1743422095373,3.67007493,595.79,594.74,0.3362814]
[1743422095667,1.48860003,595.78,594.74,0.3362814]
[1743422095872,1.48860003,595.77,594.74,0.3362814]
[1743422096173,1.48860003,595.76,594.74,0.3362814]
[1743422096373,1.48860003,595.75,594.74,0.3362814]
[1743422096570,1.48860003,595.74,594.74,0.3362814]
[1743422096768,1.48847475,595.73,594.74,0.3362814]
[1743422096974,1.48847475,595.72,594.74,0.3362814]
[1743422097173,3.25470946,595.73,594.74,0.3362814]
[1743422097374,1.48827029,595.72,594.74,0.3362814]
[1743422097574,3.25470946,595.72,594.74,0.3362814]
[1743422098370,3.25470946,595.71,594.74,0.3362814]
[1743422098776,3.25470946,595.7,594.74,0.3362814]
[1743422099477,1.25182179,595.69,594.74,0.3362814]
[1743422099876,1.25182179,595.68,594.74,0.3362814]
[1743422100280,1.25182179,595.67,594.74,0.3362814]
[1743422100778,1.25182179,595.66,594.74,0.3362814]
[1743422101175,1.25182179,595.65,594.74,0.3362814]
[1743422102280,3.25400084,595.64,594.74,0.3362814]
[1743422103080,3.25400084,595.63,594.74,0.3362814]
[1743422103879,1.25182179,595.62,594.74,0.3362814]
[1743422104099,2.58482179,595.62,594.74,0.3362814]
[1743422104375,2.73967524,595.61,594.74,0.3362814]
[1743422104579,1.25182179,595.61,594.74,0.3362814]
[1743422105078,3.25384854,595.6,594.74,0.3362814]
[1743422105280,1.48781691,595.59,594.74,0.3362814]
[1743422105479,4.74166545,595.58,594.74,0.3362814]
[1743422105680,3.25384854,595.58,594.74,0.3362814]
[1743422106078,1.25182179,595.57,594.74,0.3362814]
[1743422106477,1.25182179,595.56,594.74,0.3362814]
[1743422106879,1.25182179,595.55,594.74,0.3362814]
[1743422107680,1.25182179,595.54,594.74,0.3362814]
[1743422108277,1.333,595.62,594.74,0.3362814]
[1743422108675,1.2510203,595.61,594.74,0.3362814]
[1743422109075,1.2510203,595.6,594.74,0.3362814]
[1743422109876,1.2510203,595.59,594.74,0.3362814]
[1743422110274,1.333,595.62,594.74,0.3362814]
[1743422111381,1.527,595.61,594.74,0.3362814]
[1743422130192,1.368,595.6,594.74,0.3362814]
[1743422136598,1.568,595.59,594.74,0.3362814]
[1743422154915,1.541,595.58,594.74,0.3362814]
[1743422163322,1.541,595.58,594.74,2.8915377]
[1743422165124,1.541,595.58,594.78,2.5552563]
[1743422165425,1.541,595.58,594.79,0.33625313]
[1743422173536,2.524,595.58,594.79,0.33625313]
[1743422174725,3.848,595.58,594.79,0.33625313]
[1743422185636,1.26025427,595.57,594.79,0.33625313]
[1743422186133,1.26025427,595.56,594.79,0.33625313]
[1743422186835,1.26025427,595.55,594.79,0.33625313]
[1743422187434,2.307,595.58,594.79,0.33625313]
[1743422189141,1.26046103,595.57,594.79,0.33625313]
[1743422189738,2.37646103,595.57,594.79,0.33625313]
[1743422189943,1.26046103,595.56,594.79,0.33625313]
[1743422190343,1.26046103,595.55,594.79,0.33625313]
[1743422190543,1.26046103,595.54,594.79,0.33625313]
[1743422191245,1.26046103,595.53,594.79,0.33625313]
[1743422192141,1.26046103,595.52,594.79,0.33625313]
[1743422192339,1.26046103,595.51,594.79,0.33625313]
[1743422193039,1.26046103,595.5,594.79,0.33625313]
[1743422193244,2.43361457,595.49,594.79,0.33625313]
[1743422193439,1.49804601,595.48,594.79,0.33625313]
[1743422193643,1.49804013,595.47,594.79,0.33625313]
[1743422193946,1.49804013,595.46,594.79,0.33625313]
[1743422194240,3.27605213,595.46,594.79,0.33625313]
[1743422194843,2.43292755,595.45,594.79,0.33625313]
[1743422195048,2.43292755,595.44,594.79,0.33625313]
[1743422195342,3.27605213,595.45,594.79,0.33625313]
[1743422195343,1.49757375,595.43,594.79,0.33625313]
[1743422195545,1.49757375,595.42,594.79,0.33625313]
[1743422195743,1.49757375,595.41,594.79,0.33625313]
[1743422195941,1.26046103,595.4,594.79,0.33625313]
[1743422196340,1.26046103,595.39,594.79,0.33625313]
[1743422196741,2.39446131,595.54,594.79,0.33625313]
[1743422196742,0.67164636,595.54,594.79,0.33625313]
[1743422196945,1.49639854,595.53,594.79,0.33625313]
[1743422197145,0.67164636,595.54,594.79,0.33625313]
[1743422197347,1.25834268,595.52,594.79,0.33625313]
[1743422197842,1.25834268,595.51,594.79,0.33625313]
[1743422198448,1.25834268,595.5,594.79,0.33625313]
[1743422199251,1.116,595.57,594.79,0.33625313]
[1743422199856,1.25784647,595.56,594.79,0.33625313]
[1743422200660,1.116,595.57,594.79,0.33625313]
[1743422200857,1.25780951,595.55,594.79,0.33625313]
[1743422201451,1.25780951,595.54,594.79,0.33625313]
[1743422202055,2.307,595.58,594.79,0.33625313]
[1743422202861,1.2576649,595.57,594.79,0.33625313]
[1743422203261,1.2576649,595.56,594.79,0.33625313]
[1743422204066,1.2576649,595.55,594.79,0.33625313]
[1743422204663,2.7716649,595.54,594.79,0.33625313]
[1743422205265,1.2576649,595.53,594.79,0.33625313]
[1743422205664,1.2576649,595.52,594.79,0.33625313]
[1743422206471,1.2576649,595.51,594.79,0.33625313]
[1743422207166,1.514,595.54,594.79,0.33625313]
[1743422208166,1.2572018,595.53,594.79,0.33625313]
[1743422208568,1.49491949,595.52,594.79,0.33625313]
[1743422208769,1.49491949,595.51,594.79,0.33625313]
[1743422208969,1.2572018,595.51,594.79,0.33625313]
[1743422209769,3.26843477,595.5,594.79,0.33625313]
[1743422210474,1.2572018,595.49,594.79,0.33625313]
[1743422211075,1.514,595.54,594.79,0.33625313]
[1743422211076,1.2572018,595.48,594.79,0.33625313]
[1743422211376,1.2572018,595.47,594.79,0.33625313]
[1743422211675,1.2572018,595.46,594.79,0.33625313]
[1743422212272,1.2572018,595.45,594.79,0.33625313]
[1743422213075,1.514,595.54,594.79,0.33625313]
[1743422213276,1.49461178,595.53,594.79,0.33625313]
[1743422213474,1.49461178,595.52,594.79,0.33625313]
[1743422213677,3.26775824,595.53,594.79,0.33625313]
[1743422213874,4.76235389,595.52,594.79,0.33625313]
[1743422214180,3.26775824,595.52,594.79,0.33625313]
[1743422214380,1.49461814,595.51,594.79,0.33625313]
[1743422214580,3.26775824,595.51,594.79,0.33625313]
[1743422215280,3.26775824,595.5,594.79,0.33625313]
[1743422215772,1.25683009,595.49,594.79,0.33625313]
[1743422216482,1.25683009,595.48,594.79,0.33625313]
[1743422216882,1.25683009,595.47,594.79,0.33625313]
[1743422217677,1.514,595.54,594.79,0.33625313]
[1743422218281,1.25694028,595.53,594.79,0.33625313]
[1743422219281,1.514,595.54,594.79,0.33625313]
[1743422220279,1.25700734,595.53,594.79,0.33625313]
[1743422221186,1.514,595.54,594.79,0.33625313]
[1743422222186,1.25709409,595.53,594.79,0.33625313]
[1743422222783,1.25709409,595.52,594.79,0.33625313]
[1743422223187,1.25709409,595.51,594.79,0.33625313]
[1743422224287,1.514,595.54,594.79,0.33625313]
[1743422226689,1.2578601,595.53,594.79,0.33625313]
[1743422227488,1.2578601,595.52,594.79,0.33625313]
[1743422228382,1.2578601,595.51,594.79,0.33625313]
[1743422229190,1.2578601,595.5,594.79,0.33625313]
[1743422229689,1.2578601,595.49,594.79,0.33625313]
[1743422230290,1.2578601,595.48,594.79,0.33625313]
[1743422230891,1.2578601,595.47,594.79,0.33625313]
[1743422231092,2.43127673,595.46,594.79,0.33625313]
[1743422231291,1.2578601,595.47,594.79,0.33625313]
[1743422231487,2.43153156,595.46,594.79,0.33625313]
[1743422231687,1.49678225,595.45,594.79,0.33625313]
[1743422231894,1.49678225,595.44,594.79,0.33625313]
[1743422232096,1.49678225,595.43,594.79,0.33625313]
[1743422232298,1.49678225,595.42,594.79,0.33625313]
[1743422232596,3.2716947,595.43,594.79,0.33625313]
[1743422232793,1.49684054,595.42,594.79,0.33625313]
[1743422232993,3.2716947,595.42,594.79,0.33625313]
[1743422233190,2.8988601,595.41,594.79,0.33625313]
[1743422233590,1.2578601,595.4,594.79,0.33625313]
[1743422234397,1.2578601,595.39,594.79,0.33625313]
[1743422235090,1.2578601,595.38,594.79,0.33625313]
[1743422235411,1.2578601,595.37,594.79,0.33625313]
[1743422235898,1.2578601,595.36,594.79,0.33625313]
[1743422236297,1.123,595.35,594.79,0.33625313]
[1743422236495,2.3808601,595.35,594.79,0.33625313]
[1743422237591,1.123,595.35,594.79,0.33625313]
[1743422238497,1.26020923,595.34,594.79,0.33625313]
[1743422239399,1.123,595.35,594.79,0.33625313]
[1743422252413,1.651,595.34,594.79,0.33625313]
[1743422256328,1.26351192,595.33,594.79,0.33625313]
[1743422257113,1.651,595.34,594.79,0.33625313]
[1743422257114,1.26351192,595.32,594.79,0.33625313]
[1743422257618,1.651,595.34,594.79,0.33625313]
[1743422258119,1.26367935,595.33,594.79,0.33625313]
[1743422258513,1.26367935,595.32,594.79,0.33625313]
[1743422259119,1.651,595.34,594.79,0.33625313]
[1743422259522,1.26367689,595.33,594.79,0.33625313]
[1743422259919,1.651,595.34,594.79,0.33625313]
[1743422261417,1.26368697,595.33,594.79,0.33625313]
[1743422262222,1.651,595.34,594.79,0.33625313]
[1743422264327,1.357,595.33,594.79,0.33625313]
[1743422265635,1.26378456,595.32,594.79,0.33625313]
[1743422266635,1.26378456,595.31,594.79,0.33625313]
[1743422267230,1.26378456,595.3,594.79,0.33625313]
[1743422267731,1.26378456,595.29,594.79,0.33625313]
[1743422268128,1.313,595.28,594.79,0.33625313]
[1743422268338,1.50243232,595.27,594.79,0.33625313]
[1743422268535,1.26378456,595.27,594.79,0.33625313]
[1743422268936,1.313,595.28,594.79,0.33625313]
[1743422269333,2.02125152,595.27,594.79,0.33625313]
[1743422270331,1.313,595.28,594.79,0.33625313]
[1743422270332,1.26314454,595.26,594.79,0.33625313]
[1743422270938,1.26314454,595.25,594.79,0.33625313]
[1743422271337,1.26314454,595.24,594.79,0.33625313]
[1743422272132,1.26314454,595.23,594.79,0.33625313]
[1743422272837,1.313,595.28,594.79,0.33625313]
[1743422282149,1.357,595.33,594.79,0.33625313]
[1743422282344,1.163,595.45,594.79,0.33625313]
[1743422282543,1.50169521,595.44,594.79,0.33625313]
[1743422282745,1.163,595.45,594.79,0.33625313]
[1743422282941,1.50169298,595.44,594.79,0.33625313]
[1743422283142,1.163,595.45,594.79,0.33625313]
[1743422283444,4.78498725,595.44,594.79,0.33625313]
[1743422283641,1.50168507,595.43,594.79,0.33625313]
[1743422283849,1.50168507,595.42,594.79,0.33625313]
[1743422284152,3.28330218,595.43,594.79,0.33625313]
[1743422284747,1.26280853,595.42,594.79,0.33625313]
[1743422285246,1.26280853,595.41,594.79,0.33625313]
[1743422285645,1.26280853,595.4,594.79,0.33625313]
[1743422286049,1.26280853,595.39,594.79,0.33625313]
[1743422286251,2.39880853,595.39,594.79,0.33625313]
[1743422286450,1.416,595.38,594.79,0.33625313]
[1743422286845,1.26280853,595.37,594.79,0.33625313]
[1743422287252,1.26280853,595.36,594.79,0.33625313]
[1743422287954,1.26280853,595.35,594.79,0.33625313]
[1743422288459,1.26280853,595.34,594.79,0.33625313]
[1743422289553,1.26280853,595.33,594.79,0.33625313]
[1743422290154,1.26280853,595.32,594.79,0.33625313]
[1743422290756,1.416,595.38,594.79,0.33625313]
[1743422291152,1.26302566,595.37,594.79,0.33625313]
[1743422291752,2.51102566,595.36,594.79,0.33625313]
[1743422292356,1.26302566,595.35,594.79,0.33625313]
[1743422292754,1.26302566,595.34,594.79,0.33625313]
[1743422293656,1.26302566,595.33,594.79,0.33625313]
[1743422294055,1.26302566,595.32,594.79,0.33625313]
[1743422294656,1.248,595.36,594.79,0.33625313]
[1743422295058,1.26315401,595.31,594.79,0.33625313]
[1743422295657,1.26315401,595.3,594.79,0.33625313]
[1743422296753,1.26315401,595.29,594.79,0.33625313]
[1743422297554,1.26315401,595.28,594.79,0.33625313]
[1743422297957,1.248,595.36,594.79,0.33625313]
[1743422298155,2.44025114,595.35,594.79,0.33625313]
[1743422298354,0.9381249,595.34,594.79,0.33625313]
[1743422298557,1.26315727,595.34,594.79,0.33625313]
[1743422298859,1.50207736,595.33,594.79,0.33625313]
[1743422299059,1.50207736,595.32,594.79,0.33625313]
[1743422299260,1.50207736,595.31,594.79,0.33625313]
[1743422299453,1.50207736,595.3,594.79,0.33625313]
[1743422299656,1.50205288,595.29,594.79,0.33625313]
[1743422299853,1.26315727,595.3,594.79,0.33625313]
[1743422300159,1.50207062,595.29,594.79,0.33625313]
[1743422300359,1.26315727,595.3,594.79,0.33625313]
[1743422300558,1.50200398,595.29,594.79,0.33625313]
[1743422300859,1.50200398,595.28,594.79,0.33625313]
[1743422301059,3.28404178,595.29,594.79,0.33625313]
[1743422301253,3.28404178,595.27,594.79,0.33625313]
[1743422301859,1.26309299,595.26,594.79,0.33625313]
[1743422302661,1.26309299,595.25,594.79,0.33625313]
[1743422303256,1.26309299,595.24,594.79,0.33625313]
[1743422303860,1.248,595.36,594.79,0.33625313]
[1743422304163,1.26301123,595.23,594.79,0.33625313]
[1743422304559,1.26301123,595.22,594.79,0.33625313]